bitfinex/quotes_BTCUSD_20240627
["timestamp","ask_amount","ask_price","bid_price","bid_amount"]
[1719461273441,2.21174907,61122.0,61121.0,0.000924]
[1719461274212,2.3768574,61122.0,61121.0,0.000924]
[1719461276537,2.37683104,61122.0,61121.0,0.000924]
[1719461277001,2.37681447,61122.0,61121.0,0.000924]
[1719461277998,2.53914818,61122.0,61121.0,0.000924]
[1719461278242,2.33914818,61122.0,61121.0,0.000924]
[1719461279230,2.17400574,61122.0,61121.0,0.000924]
[1719461279814,1.91664216,61122.0,61121.0,0.000924]
[1719461279985,2.01181281,61122.0,61121.0,0.000924]
[1719461282282,2.01179807,61122.0,61121.0,0.000924]
[1719461284225,1.91599807,61122.0,61121.0,0.000924]
[1719461284394,2.17708173,61122.0,61121.0,0.083524]
[1719461284857,2.01179807,61122.0,61121.0,0.083524]
[1719461285029,1.94029056,61122.0,61121.0,0.083524]
[1719461285243,1.94029056,61122.0,61121.0,0.143624]
[1719461285440,1.93984692,61122.0,61121.0,0.143624]
[1719461285826,1.93984695,61122.0,61121.0,0.143624]
[1719461288677,1.93978632,61122.0,61121.0,0.143624]
[1719461289246,2.13978632,61122.0,61121.0,0.143624]
[1719461289544,2.13978632,61122.0,61121.0,0.083524]
[1719461289545,2.21086572,61122.0,61121.0,0.083524]
[1719461290959,2.01086572,61122.0,61121.0,0.083524]
[1719461291660,2.01086572,61122.0,61121.0,0.000924]
[1719461291661,2.37169719,61122.0,61121.0,0.000924]
[1719461291853,2.44619719,61122.0,61121.0,0.000924]
[1719461292638,2.44619719,61122.0,61108.0,0.000924]
[1719461292639,0.327265,61113.0,61109.0,0.1457]
[1719461292793,0.586717,61110.0,61109.0,0.1457]
[1719461292972,1.09867858,61110.0,61109.0,0.1457]
[1719461293177,1.42595658,61110.0,61109.0,0.1457]
[1719461294606,1.5489555,61110.0,61109.0,0.1457]
[1719461295268,1.5495541,61110.0,61109.0,0.1457]
[1719461295741,1.42955518,61110.0,61109.0,0.1467]
[1719461295891,1.42955518,61110.0,61109.0,0.1457]
[1719461295892,1.43119112,61110.0,61109.0,0.1457]
[1719461296286,1.43519112,61110.0,61109.0,0.1457]
[1719461297199,1.63519112,61110.0,61109.0,0.1457]
[1719461297455,1.79752483,61110.0,61109.0,0.1457]
[1719461298036,1.77458163,61110.0,61109.0,0.1457]
[1719461298238,1.79755352,61110.0,61109.0,0.1457]
[1719461300342,1.94429251,61110.0,61109.0,0.1457]
[1719461301316,1.94429498,61110.0,61109.0,0.1457]
[1719461302060,1.94429498,61110.0,61109.0,0.146624]
[1719461303219,1.74429498,61110.0,61109.0,0.146624]
[1719461303413,1.48616127,61110.0,61109.0,0.146624]
[1719461303690,1.58196127,61110.0,61109.0,0.146624]
[1719461304215,1.62154674,61110.0,61109.0,0.146624]
[1719461304510,1.47481541,61110.0,61109.0,0.146624]
[1719461304677,1.62156419,61110.0,61109.0,0.146624]
[1719461305014,1.62155239,61110.0,61109.0,0.146624]
[1719461306386,1.51655473,61110.0,61109.0,0.146624]
[1719461307202,1.6632577,61110.0,61109.0,0.146624]
[1719461307397,1.51655473,61110.0,61109.0,0.146624]
[1719461307775,1.51655203,61110.0,61109.0,0.146624]
[1719461311126,1.51671053,61110.0,61109.0,0.146624]
[1719461312446,1.5423707,61110.0,61109.0,0.146624]
[1719461314386,1.54229817,61110.0,61109.0,0.146624]
[1719461314719,1.54229945,61110.0,61109.0,0.146624]
[1719461314976,1.51663928,61110.0,61109.0,0.146624]
[1719461315741,1.51659245,61110.0,61109.0,0.146624]
[1719461316565,0.073395,61110.0,61109.0,0.166624]
[1719461316815,0.073395,61110.0,61109.0,0.426066]
[1719461316816,0.03168969,61110.0,61109.0,0.426066]
[1719461316985,0.0978249,61115.0,61114.0,0.1566]
[1719461317184,0.1978249,61121.0,61117.0,0.02]
[1719461317394,0.1978249,61121.0,61112.0,0.163631]
[1719461317395,0.263609,61121.0,61120.0,0.1566]
[1719461318642,0.359409,61121.0,61120.0,0.1366]
[1719461319060,0.30588929,61121.0,61120.0,0.1366]
[1719461319217,0.30688929,61121.0,61120.0,0.1566]
[1719461319408,0.30788929,61121.0,61120.0,0.1566]
[1719461320633,0.30688929,61121.0,61120.0,0.1366]
[1719461321262,0.30688929,61121.0,61113.0,0.02]
[1719461321469,0.490861,61117.0,61116.0,0.0802]
[1719461321694,0.586661,61117.0,61116.0,0.0802]
[1719461321974,0.818102,61117.0,61116.0,0.0802]
[1719461322131,0.913902,61117.0,61116.0,0.0802]
[1719461324450,0.913902,61117.0,61116.0,0.0852]
[1719461324987,0.913902,61117.0,61116.0,0.0892]
[1719461325706,0.913902,61117.0,61116.0,0.0852]
[1719461325906,0.913902,61117.0,61116.0,0.0802]
[1719461326104,0.917902,61117.0,61116.0,0.0802]
[1719461326305,0.913902,61117.0,61116.0,0.0802]
[1719461326764,0.917902,61117.0,61116.0,0.0802]
[1719461327286,0.919902,61117.0,61116.0,0.0802]
[1719461327721,0.917902,61117.0,61116.0,0.0802]
[1719461328104,0.919902,61117.0,61116.0,0.0802]
[1719461331531,1.03749251,61117.0,61116.0,0.0802]
[1719461333873,1.03757603,61117.0,61116.0,0.0802]
[1719461334478,0.818142,61114.0,61113.0,0.0815]
[1719461334682,0.327267,61112.0,61110.0,0.0815]
[1719461334934,0.11589298,61114.0,61109.0,0.000924]
[1719461334935,0.818195,61110.0,61109.0,0.000924]
[1719461335424,1.145473,61110.0,61109.0,0.000924]
[1719461336490,1.145473,61110.0,61109.0,0.006924]
[1719461337789,1.146473,61110.0,61109.0,0.012924]
[1719461338606,1.146473,61110.0,61109.0,0.088124]
[1719461342832,1.242273,61110.0,61109.0,0.088124]
[1719461344413,1.146473,61110.0,61109.0,0.088124]
[1719461344661,0.914995,61110.0,61109.0,0.088124]
[1719461345651,0.93578228,61110.0,61109.0,0.088124]
[1719461346130,0.914995,61110.0,61109.0,0.088124]
[1719461346357,0.93577492,61110.0,61109.0,0.088124]
[1719461348721,0.9356593,61110.0,61109.0,0.088124]
[1719461349325,0.64649653,61110.0,61109.0,0.088124]
[1719461349528,0.97377453,61110.0,61109.0,0.088124]
[1719461349744,1.01552754,61110.0,61109.0,0.088124]
[1719461351802,0.99486324,61110.0,61109.0,0.088124]
[1719461351953,1.01581197,61110.0,61109.0,0.088124]
[1719461353987,0.92001197,61110.0,61109.0,0.108124]
[1719461354194,0.04275301,61110.0,61109.0,0.108124]
[1719461354547,0.001,61110.0,61109.0,0.17857506]
[1719461356014,0.001,61110.0,61109.0,0.35221706]
[1719461356183,0.001,61110.0,61109.0,0.44801706]
[1719461356598,0.001,61110.0,61109.0,0.77530106]
[1719461363689,0.001,61110.0,61109.0,1.10258506]
[1719461370565,0.09756927,61129.0,61126.0,0.0767]
[1719461370782,0.16547391,61142.0,61141.0,0.183556]
[1719461370783,0.00084,61142.0,61141.0,0.183556]
[1719461370994,0.00084,61142.0,61141.0,1.28598]
[1719461371205,0.00084,61142.0,61141.0,1.00248801]
[1719461371406,0.00084,61142.0,61141.0,0.97248801]
[1719461371612,0.0958,61154.0,61151.0,0.02]
[1719461371817,0.163504,61161.0,61153.0,0.02]
[1719461372027,0.04118235,61162.0,61158.0,0.02]
[1719461372240,0.04118235,61162.0,61152.0,0.01269403]
[1719461372241,0.0958,61161.0,61157.0,0.02]
[1719461372446,0.0958,61159.0,61157.0,0.02]
[1719461372656,0.0958,61159.0,61158.0,0.01269282]
[1719461372858,0.0958,61159.0,61157.0,0.02]
[1719461373070,0.163498,61163.0,61154.0,0.02]
[1719461373271,0.0958,61159.0,61156.0,0.02]
[1719461373475,0.0958,61159.0,61158.0,0.01]
[1719461373688,0.0958,61159.0,61156.0,0.02]
[1719461374124,0.0958,61159.0,61157.0,0.01269287]
[1719461374398,0.0958,61159.0,61156.0,0.02]
[1719461374827,0.0958,61159.0,61157.0,0.01269287]
[1719461375034,0.16233898,61165.0,61158.0,0.02]
[1719461375035,0.0958,61160.0,61158.0,0.02]
[1719461375394,0.1,61164.0,61159.0,0.01269278]
[1719461375395,0.0958,61162.0,61159.0,0.01269278]
[1719461375631,0.1,61164.0,61159.0,0.01269278]
[1719461375632,0.0958,61160.0,61159.0,0.01269278]
[1719461375833,0.0958,61160.0,61158.0,0.02]
[1719461376210,0.0968,61160.0,61158.0,0.02]
[1719461376595,0.0958,61160.0,61158.0,0.02]
[1719461377009,0.0968,61160.0,61159.0,0.01269278]
[1719461377221,0.0958,61160.0,61159.0,0.01269278]
[1719461378076,0.0958,61160.0,61158.0,0.02]
[1719461378289,0.0958,61160.0,61159.0,0.01269278]
[1719461378515,0.0968,61160.0,61159.0,0.01269278]
[1719461378916,0.0958,61162.0,61159.0,0.01269278]
[1719461379120,0.001,61160.0,61159.0,0.01269278]
[1719461379323,0.001,61160.0,61159.0,0.03269278]
[1719461379591,0.001,61160.0,61159.0,0.01269278]
[1719461380007,0.001,61160.0,61159.0,0.03269278]
[1719461380212,0.001,61160.0,61159.0,0.01269278]
[1719461381475,0.82385498,61160.0,61159.0,0.01269278]
[1719461381684,0.163511,61158.0,61152.0,0.02]
[1719461381892,0.259311,61158.0,61152.0,0.02]
[1719461382097,0.259311,61158.0,61153.0,0.02]
[1719461383339,0.259311,61158.0,61153.0,0.021]
[1719461383747,0.259311,61158.0,61154.0,0.02]
[1719461385778,0.260311,61158.0,61154.0,0.02]
[1719461385984,0.259311,61158.0,61154.0,0.02]
[1719461386427,0.260311,61158.0,61153.0,0.02]
[1719461386621,0.260311,61158.0,61154.0,0.02]
[1719461386842,0.260311,61158.0,61154.0,0.03259106]
[1719461388922,0.164511,61158.0,61154.0,0.03259106]
[1719461389537,0.001,61158.0,61156.0,0.02]
[1719461389947,0.0968,61158.0,61156.0,0.02]
[1719461390152,0.0958,61158.0,61155.0,0.02]
[1719461390351,0.0958,61158.0,61157.0,0.01259093]
[1719461390623,0.0958,61158.0,61155.0,0.02]
[1719461390624,0.0968,61158.0,61155.0,0.02]
[1719461390830,0.0958,61158.0,61157.0,0.01259093]
[1719461391036,0.0958,61158.0,61156.0,0.01259097]
[1719461391247,0.0958,61158.0,61157.0,0.01259093]
[1719461391671,0.14023383,61159.0,61155.0,0.02]
[1719461391890,0.0958,61158.0,61157.0,0.01259093]
[1719461392096,0.0958,61158.0,61156.0,0.01259097]
[1719461392311,0.0958,61158.0,61157.0,0.01259093]
[1719461392710,0.0968,61158.0,61157.0,0.01259093]
[1719461393132,0.0958,61158.0,61157.0,0.01259093]
[1719461393345,0.0958,61158.0,61157.0,0.002]
[1719461393561,0.0958,61158.0,61157.0,0.01459093]
[1719461394012,0.0958,61158.0,61157.0,0.01559093]
[1719461395502,0.14023383,61159.0,61157.0,0.01559093]
[1719461395743,0.27695857,61159.0,61157.0,0.01559093]
[1719461396347,0.27695857,61159.0,61157.0,0.01359093]
[1719461396743,0.27695857,61159.0,61157.0,0.01259093]
[1719461397126,0.04092474,61159.0,61158.0,0.02]
[1719461397336,0.1616,61164.0,61159.0,0.02]
[1719461397337,0.0958,61163.0,61159.0,0.02]
[1719461397752,0.0958,61163.0,61160.0,0.01259426]
[1719461398167,0.1,61164.0,61162.0,0.02]
[1719461398402,0.1,61168.0,61166.0,0.02]
[1719461398610,0.0958,61167.0,61166.0,0.02]
[1719461399021,0.1,61168.0,61166.0,0.02]
[1719461399427,0.0958,61167.0,61166.0,0.02]
[1719461400045,0.0998,61167.0,61166.0,0.021]
[1719461400260,0.0998,61167.0,61166.0,0.022]
[1719461400676,0.004,61167.0,61166.0,0.022]
[1719461401311,0.0998,61167.0,61166.0,0.022]
[1719461401515,0.004,61167.0,61166.0,0.021]
[1719461401933,0.004,61167.0,61166.0,0.022]
[1719461401934,0.011,61167.0,61166.0,0.022]
[1719461403177,0.004,61167.0,61166.0,0.021]
[1719461403410,0.0958,61169.0,61166.0,0.02]
[1719461403617,0.003,61167.0,61166.0,0.02]
[1719461403823,0.007,61167.0,61166.0,0.02]
[1719461404440,0.007,61167.0,61164.0,0.02]
[1719461404689,0.007,61167.0,61166.0,0.02]
[1719461404902,0.007,61167.0,61164.0,0.02]
[1719461404903,0.004,61167.0,61164.0,0.02]
[1719461405948,0.003,61167.0,61164.0,0.02]
[1719461406158,0.003,61167.0,61163.0,0.183496]
[1719461406373,0.007,61167.0,61163.0,0.183496]
[1719461406569,0.004,61167.0,61163.0,0.183496]
[1719461406990,0.007,61167.0,61163.0,0.183496]
[1719461407202,0.003,61167.0,61163.0,0.183496]
[1719461407813,0.003,61167.0,61164.0,0.02]
[1719461408265,0.0958,61168.0,61164.0,0.02]
[1719461408498,0.004,61167.0,61164.0,0.02]
[1719461408736,0.00384,61167.0,61164.0,0.02]
[1719461409205,0.00084,61167.0,61164.0,0.02]
[1719461409670,0.00484,61167.0,61164.0,0.02]
[1719461410342,0.00784,61167.0,61164.0,0.02]
[1719461413017,0.00784,61167.0,61165.0,0.01245655]
[1719461413942,0.00784,61167.0,61166.0,0.02]
[1719461414170,0.00784,61167.0,61165.0,0.01245655]
[1719461414408,0.00784,61167.0,61166.0,0.01038105]
[1719461414665,0.00784,61167.0,61161.0,0.163501]
[1719461414900,0.0958,61164.0,61160.0,0.02]
[1719461416039,0.0958,61164.0,61160.0,0.021]
[1719461416886,0.259294,61164.0,61160.0,0.021]
[1719461417502,0.259294,61164.0,61162.0,0.02]
[1719461417912,0.163494,61164.0,61162.0,0.02]
[1719461418750,0.163494,61164.0,61162.0,0.021]
[1719461421678,0.163494,61164.0,61163.0,0.02]
[1719461422994,0.163494,61164.0,61163.0,0.021]
[1719461423817,0.490472,61166.0,61163.0,0.021]
[1719461424024,0.0223719,61165.0,61163.0,0.021]
[1719461424267,0.02237166,61164.0,61163.0,0.021]
[1719461424671,0.02237166,61164.0,61163.0,0.02]
[1719461424899,0.02236972,61164.0,61163.0,0.02]
[1719461426020,0.18586372,61164.0,61163.0,0.001]
[1719461428146,0.1854949,61164.0,61163.0,0.001]
[1719461428391,1.47549998,61164.0,61163.0,0.001]
[1719461428661,1.59753417,61164.0,61163.0,0.001]
[1719461429085,0.49054,61157.0,61151.0,0.02]
[1719461429293,0.49054,61157.0,61156.0,0.020924]
[1719461429294,0.11783419,61157.0,61156.0,0.020924]
[1719461429506,0.02203419,61157.0,61156.0,0.184724]
[1719461429721,0.18553919,61160.0,61156.0,0.19546729]
[1719461429935,0.18553919,61160.0,61159.0,0.02]
[1719461429936,0.163505,61160.0,61159.0,0.02]
[1719461430142,0.18568233,61160.0,61159.0,0.02]
[1719461431247,0.163508,61159.0,61158.0,0.02]
[1719461432075,0.163508,61159.0,61158.0,0.03075813]
[1719461432899,0.163508,61159.0,61158.0,0.03275813]
[1719461433920,0.163508,61159.0,61158.0,0.03575813]
[1719461436055,0.21055445,61161.0,61160.0,0.02]
[1719461436257,0.04705145,61161.0,61160.0,0.02]
[1719461436509,0.163498,61163.0,61160.0,0.02]
[1719461436659,0.1635,61162.0,61160.0,0.01075804]
[1719461436861,0.163502,61161.0,61160.0,0.01075804]
[1719461437064,0.163499,61163.0,61160.0,0.01075804]
[1719461437271,0.18550088,61162.0,61160.0,0.01175804]
[1719461437474,0.163501,61162.0,61160.0,0.01175804]
[1719461438478,0.163502,61161.0,61160.0,0.01175804]
[1719461438681,0.163502,61161.0,61160.0,0.01075804]
[1719461439062,0.163502,61161.0,61158.0,0.02]
[1719461439291,0.163502,61161.0,61160.0,0.01075804]
[1719461439408,0.163502,61161.0,61159.0,0.01075809]
[1719461439608,0.163502,61161.0,61158.0,0.02]
[1719461439833,0.163502,61161.0,61160.0,0.01075804]
[1719461440032,0.163502,61161.0,61159.0,0.01075809]
[1719461440232,0.163502,61161.0,61159.0,0.02]
[1719461440468,0.163502,61161.0,61160.0,0.01075804]
[1719461440667,0.163502,61161.0,61160.0,0.01175804]
[1719461441172,0.163502,61161.0,61159.0,0.02]
[1719461441384,0.163502,61161.0,61159.0,0.025]
[1719461441620,0.163505,61160.0,61159.0,0.025]
[1719461441826,0.163505,61160.0,61159.0,0.02]
[1719461442046,0.327005,61161.0,61160.0,0.002]
[1719461442252,0.327005,61161.0,61160.0,0.005]
[1719461442253,0.60793693,61161.0,61160.0,0.005]
[1719461442462,0.93494193,61161.0,61160.0,0.003]
[1719461443790,0.93494193,61161.0,61159.0,0.002924]
[1719461443791,0.490516,61160.0,61159.0,0.002924]
[1719461444022,0.817527,61160.0,61159.0,0.007924]
[1719461444230,0.83912917,61160.0,61159.0,0.007924]
[1719461444676,0.83912917,61160.0,61159.0,0.000924]
[1719461445485,0.83906641,61160.0,61159.0,0.000924]
[1719461445661,0.84106641,61160.0,61159.0,0.000924]
[1719461445900,1.17107741,61160.0,61159.0,0.000924]
[1719461446468,1.16807741,61160.0,61159.0,0.000924]
[1719461447221,1.16607741,61160.0,61159.0,0.000924]
[1719461447428,1.147538,61160.0,61159.0,0.000924]
[1719461447603,1.16935752,61160.0,61159.0,0.000924]
[1719461447818,1.17035721,61160.0,61159.0,0.000924]
[1719461448019,1.16635721,61160.0,61159.0,0.000924]
[1719461448233,1.16835721,61160.0,61159.0,0.000924]
[1719461448380,1.17135721,61160.0,61159.0,0.000924]
[1719461448580,1.16935721,61160.0,61159.0,0.000924]
[1719461448846,1.16635721,61160.0,61159.0,0.000924]
[1719461449051,1.17335721,61160.0,61159.0,0.000924]
[1719461449381,1.16935721,61160.0,61159.0,0.000924]
[1719461449575,1.17235721,61160.0,61159.0,0.000924]
[1719461449993,0.84534621,61160.0,61159.0,0.000924]
[1719461450217,0.51533521,61160.0,61159.0,0.170324]
[1719461450812,0.84434621,61160.0,61159.0,0.170324]
[1719461451017,0.93714621,61160.0,61159.0,0.170324]
[1719461451415,0.61213521,61160.0,61159.0,0.170324]
[1719461451649,0.60813521,61160.0,61159.0,0.170324]
[1719461451850,0.60813521,61160.0,61159.0,0.172324]
[1719461452163,0.60813521,61160.0,61159.0,0.170324]
[1719461452786,0.60913521,61160.0,61159.0,0.170324]
[1719461452964,0.60913521,61160.0,61159.0,0.18107936]
[1719461453165,0.60813521,61160.0,61159.0,0.170324]
[1719461453784,0.00174731,61160.0,61159.0,0.170324]
[1719461454007,0.02148629,61160.0,61159.0,0.18107936]
[1719461454211,0.51200229,61160.0,61159.0,0.18107936]
[1719461454417,0.83901329,61160.0,61159.0,0.001924]
[1719461454633,0.83901329,61160.0,61159.0,0.003924]
[1719461454938,0.83901329,61160.0,61159.0,0.002924]
[1719461455581,0.83901329,61160.0,61159.0,0.000924]
[1719461455926,0.84201329,61160.0,61159.0,0.000924]
[1719461456127,0.83901329,61160.0,61159.0,0.000924]
[1719461456915,0.817527,61160.0,61159.0,0.000924]
[1719461457117,0.8388868,61160.0,61159.0,0.000924]
[1719461457324,0.817527,61160.0,61159.0,0.000924]
[1719461457529,0.84088568,61160.0,61159.0,0.000924]
[1719461457948,0.84088568,61160.0,61159.0,0.001924]
[1719461458148,0.83888568,61160.0,61159.0,0.001924]
[1719461458351,0.819527,61160.0,61159.0,0.000924]
[1719461458525,0.84090267,61160.0,61159.0,0.000924]
[1719461458705,0.84390267,61160.0,61159.0,0.000924]
[1719461460170,0.8438829,61160.0,61159.0,0.000924]
[1719461460815,5.8438829,61160.0,61159.0,0.000924]
[1719461462523,5.822527,61160.0,61159.0,0.000924]
[1719461462690,5.84388826,61160.0,61159.0,0.000924]
[1719461463295,5.96619143,61160.0,61159.0,0.000924]
[1719461463522,6.33579926,61160.0,61159.0,0.000924]
[1719461464146,6.49813297,61160.0,61159.0,0.000924]
[1719461464352,7.23424675,61160.0,61159.0,0.000924]
[1719461464717,7.08748295,61160.0,61159.0,0.000924]
[1719461467025,7.07087244,61160.0,61159.0,0.000924]
[1719461467383,7.07105874,61160.0,61159.0,0.000924]
[1719461469020,7.07099637,61160.0,61159.0,0.000924]
[1719461470141,7.30964079,61160.0,61159.0,0.000924]
[1719461470544,7.52081706,61160.0,61159.0,0.000924]
[1719461470948,7.51781706,61160.0,61159.0,0.000924]
[1719461471392,7.71981706,61160.0,61159.0,0.001924]
[1719461471800,8.08978731,61160.0,61159.0,0.001924]
[1719461472005,7.83606649,61160.0,61159.0,0.001924]
[1719461472178,7.91920259,61160.0,61159.0,0.001924]
[1719461472372,8.08406545,61160.0,61159.0,0.001924]
[1719461472553,0.817727,61145.0,61144.0,0.08130346]
[1719461472761,0.1834752,61145.0,61144.0,0.01159339]
[1719461472971,0.163548,61144.0,61143.0,0.0914]
[1719461473192,0.163548,61144.0,61143.0,0.10299343]
[1719461473193,0.1834782,61144.0,61143.0,0.10299343]
[1719461473418,0.490644,61144.0,61143.0,0.10299343]
[1719461473626,0.81774,61144.0,61143.0,0.10299343]
[1719461473828,0.81774,61144.0,61131.0,0.16358]
[1719461473829,0.01998203,61144.0,61135.0,0.1652]
[1719461474024,0.586508,61136.0,61135.0,0.1652]
[1719461474286,0.913647,61136.0,61135.0,0.1652]
[1719461474688,1.240786,61136.0,61135.0,0.1652]
[1719461475240,1.243786,61136.0,61135.0,0.1652]
[1719461475481,1.243786,61136.0,61135.0,0.0948]
[1719461475674,1.144986,61136.0,61135.0,0.0948]
[1719461475896,1.27762197,61136.0,61135.0,0.0948]
[1719461476091,1.27762185,61136.0,61135.0,0.0948]
[1719461476526,1.28062185,61136.0,61135.0,0.0948]
[1719461477296,1.27762185,61136.0,61135.0,0.0948]
[1719461477526,1.27962185,61136.0,61135.0,0.0948]
[1719461477781,1.27662647,61136.0,61135.0,0.0948]
[1719461478149,1.27862647,61136.0,61135.0,0.0948]
[1719461479352,1.27862647,61136.0,61135.0,0.095724]
[1719461482266,0.85568747,61136.0,61135.0,0.095724]
[1719461482669,0.95148747,61136.0,61135.0,0.095724]
[1719461483778,0.94948747,61136.0,61135.0,0.095724]
[1719461483982,0.94748747,61136.0,61135.0,0.095724]
[1719461484093,0.95048747,61136.0,61135.0,0.095724]
[1719461484305,0.85368747,61136.0,61135.0,0.095724]
[1719461484537,0.94948747,61136.0,61135.0,0.095724]
[1719461484781,0.95248747,61136.0,61135.0,0.095724]
[1719461484974,0.95048747,61136.0,61135.0,0.095724]
[1719461485194,0.95248747,61136.0,61135.0,0.095724]
[1719461485607,0.85668747,61136.0,61135.0,0.115724]
[1719461485804,0.95248747,61136.0,61135.0,0.095724]
[1719461486006,0.85668747,61136.0,61135.0,0.095724]
[1719461487102,0.90126376,61136.0,61135.0,0.095724]
[1719461487299,0.89826376,61136.0,61135.0,0.095724]
[1719461487517,0.89626376,61136.0,61135.0,0.095724]
[1719461487704,0.90126376,61136.0,61135.0,0.095724]
[1719461488064,0.89826376,61136.0,61135.0,0.095724]
[1719461488275,0.90126376,61136.0,61135.0,0.095724]
[1719461488504,0.89926376,61136.0,61135.0,0.095724]
[1719461488723,0.90126376,61136.0,61135.0,0.095724]
[1719461489065,0.90126376,61136.0,61135.0,0.115724]
[1719461490470,0.89926376,61136.0,61135.0,0.115724]
[1719461490956,0.89826376,61136.0,61135.0,0.115724]
[1719461491383,0.89926376,61136.0,61135.0,0.115724]
[1719461491599,0.89626376,61136.0,61135.0,0.115724]
[1719461491790,0.89826376,61136.0,61135.0,0.115724]
[1719461491988,0.90126376,61136.0,61135.0,0.115724]
[1719461493563,0.89926376,61136.0,61135.0,0.115724]
[1719461493769,0.89926376,61136.0,61135.0,0.000924]
[1719461493970,0.90126376,61136.0,61135.0,0.000924]
[1719461494419,0.89926376,61136.0,61135.0,0.000924]
[1719461494966,0.90126376,61136.0,61135.0,0.000924]
[1719461496394,0.92207895,61136.0,61135.0,0.000924]
[1719461497329,1.01787895,61136.0,61135.0,0.000924]
[1719461497740,1.01787347,61136.0,61135.0,0.000924]
[1719461498550,0.92207347,61136.0,61135.0,0.000924]
[1719461498752,1.01787347,61136.0,61135.0,0.020924]
[1719461498966,0.92207347,61136.0,61135.0,0.01265811]
[1719461499167,1.01787347,61136.0,61135.0,0.01265811]
[1719461499776,1.01787347,61136.0,61135.0,0.000924]
[1719461500478,1.01587347,61136.0,61135.0,0.000924]
[1719461500886,1.01794255,61136.0,61135.0,0.000924]
[1719461501217,1.01594255,61136.0,61135.0,0.000924]
[1719461501672,1.01794255,61136.0,61135.0,0.000924]
[1719461502075,1.34508155,61136.0,61135.0,0.000924]
[1719461504082,1.34506421,61136.0,61135.0,0.000924]
[1719461504517,1.32420276,61136.0,61135.0,0.000924]
[1719461504769,1.34501467,61136.0,61135.0,0.000924]
[1719461505438,1.32420276,61136.0,61135.0,0.000924]
[1719461505680,1.34502324,61136.0,61135.0,0.000924]
[1719461506102,1.34771775,61136.0,61135.0,0.000924]
[1719461507135,1.34782328,61136.0,61135.0,0.000924]
[1719461507544,1.34776474,61136.0,61135.0,0.000924]
[1719461510708,1.34786578,61136.0,61135.0,0.000924]
[1719461513912,1.32689727,61136.0,61135.0,0.000924]
[1719461514077,1.34764961,61136.0,61135.0,0.000924]
[1719461514284,1.32689727,61136.0,61135.0,0.000924]
[1719461514509,1.34765884,61136.0,61135.0,0.000924]
[1719461515185,1.5095556,61136.0,61135.0,0.000924]
[1719461515391,1.50969567,61136.0,61135.0,0.000924]
[1719461516393,1.6563151,61136.0,61135.0,0.000924]
[1719461517207,1.65651729,61136.0,61135.0,0.000924]
[1719461520433,1.6566786,61136.0,61135.0,0.000924]
[1719461520995,1.81901231,61136.0,61135.0,0.000924]
[1719461522305,2.30849029,61136.0,61135.0,0.000924]
[1719461522481,2.43149029,61136.0,61135.0,0.000924]
[1719461522682,2.41030406,61136.0,61135.0,0.000924]
[1719461522864,2.26916038,61136.0,61135.0,0.000924]
[1719461523259,2.26916027,61136.0,61135.0,0.000924]
[1719461526220,2.17336027,61136.0,61135.0,0.000924]
[1719461526419,1.49898229,61136.0,61135.0,0.000924]
[1719461526729,1.44811022,61136.0,61135.0,0.000924]
[1719461529167,1.44893305,61136.0,61135.0,0.000924]
[1719461532201,1.42689403,61136.0,61135.0,0.000924]
[1719461532412,1.44963893,61136.0,61135.0,0.000924]
[1719461532621,1.42689403,61136.0,61135.0,0.000924]
[1719461532767,1.44979604,61136.0,61135.0,0.000924]
[1719461535889,1.4494428,61136.0,61135.0,0.000924]
[1719461539210,1.44941438,61136.0,61135.0,0.000924]
[1719461542820,1.44956174,61136.0,61135.0,0.000924]
[1719461545756,1.4494919,61136.0,61135.0,0.000924]
[1719461548078,1.3494919,61136.0,61135.0,0.000924]
[1719461549001,1.34946721,61136.0,61135.0,0.000924]
[1719461549165,1.37288039,61136.0,61135.0,0.000924]
[1719461550694,1.47288039,61136.0,61135.0,0.000924]
[1719461552368,1.47291419,61136.0,61135.0,0.000924]
[1719461552549,1.45030721,61136.0,61135.0,0.000924]
[1719461552749,1.61981622,61136.0,61135.0,0.000924]
[1719461553506,1.59708866,61136.0,61135.0,0.000924]
[1719461553811,1.61972212,61136.0,61135.0,0.000924]
[1719461555501,1.61980194,61136.0,61135.0,0.000924]
[1719461556087,1.52400194,61136.0,61135.0,0.000924]
[1719461556300,1.19686294,61136.0,61135.0,0.087024]
[1719461556496,1.19686294,61136.0,61135.0,0.179224]
[1719461556704,1.04999435,61136.0,61135.0,0.159224]
[1719461557090,1.04799435,61136.0,61135.0,0.159224]
[1719461557467,1.14379435,61136.0,61135.0,0.159224]
[1719461557690,1.14079435,61136.0,61135.0,0.159224]
[1719461557898,1.14379435,61136.0,61135.0,0.159224]
[1719461558281,1.14079435,61136.0,61135.0,0.159224]
[1719461558615,1.11816821,61136.0,61135.0,0.159224]
[1719461558825,1.14350388,61136.0,61135.0,0.162224]
[1719461559186,1.14150388,61136.0,61135.0,0.162224]
[1719461559399,1.14150388,61136.0,61135.0,0.159224]
[1719461559588,1.14150388,61136.0,61135.0,0.162224]
[1719461559783,1.04570388,61136.0,61135.0,0.162224]
[1719461560014,1.14150388,61136.0,61135.0,0.159224]
[1719461560414,1.14350388,61136.0,61135.0,0.159224]
[1719461561065,1.05070388,61136.0,61135.0,0.159224]
[1719461561289,1.14350388,61136.0,61135.0,0.159224]
[1719461561515,1.14350388,61136.0,61135.0,0.161224]
[1719461561712,1.11816821,61136.0,61135.0,0.161224]
[1719461561928,1.11816821,61136.0,61135.0,0.159224]
[1719461561929,1.1194348,61136.0,61135.0,0.159224]
[1719461562122,1.02463472,61136.0,61135.0,0.159224]
[1719461562336,1.02463472,61136.0,61135.0,0.162224]
[1719461562337,1.12043472,61136.0,61135.0,0.162224]